fUSD/lending_fUSD_20250514
["ID","MTS","AMOUNT","RATE_DAILY","PERIOD"]
[361015266,1747205462900,-400.0,0.00011232,2]
[361015267,1747205462911,-400.0,0.00011232,2]
[361015268,1747205462920,-400.0,0.00011232,2]
[361015269,1747205462929,-779.73,0.00011232,2]
[361015270,1747205462938,-400.0,0.00011232,2]
[361015271,1747205462947,-400.0,0.00011232,2]
[361015272,1747205462958,-400.0,0.00011232,2]
[361015273,1747205462967,-469.9092974,0.00011232,2]
[361015274,1747205462976,-1365.87,0.00011232,2]
[361015275,1747205462987,-400.0,0.00011232,2]
[361015276,1747205462997,-400.0,0.00011232,2]
[361015277,1747205463008,-338.72547913,0.00011232,2]
[361015278,1747205463017,-400.0,0.00011232,2]
[361015279,1747205463027,-495.27824443,0.00011232,2]
[361015280,1747205463037,-2670.42,0.00011232,2]
[361015281,1747205463047,-400.0,0.00011232,2]
[361015282,1747205463056,-522.19269138,0.00011232,2]
[361015283,1747205463066,-569.57,0.00011232,2]
[361015284,1747205463076,-400.0,0.00011232,2]
[361015285,1747205463085,-1761.47,0.00011232,2]
[361015286,1747205463095,-186.36845443,0.00011232,2]
[361015287,1747205463104,-853.3,0.00011232,2]
[361015288,1747205463114,-400.0,0.00011232,2]
[361015289,1747205463124,-400.0,0.00011232,2]
[361015290,1747205463133,-400.0,0.00011232,2]
[361015291,1747205463143,-588.98,0.00011232,2]
[361015292,1747205463152,-400.0,0.00011232,2]
[361015293,1747205463162,-400.0,0.00011232,2]
[361015294,1747205463172,-418.85,0.00011232,2]
[361015295,1747205463181,-400.0,0.00011232,2]
[361015296,1747205463191,-151.0,0.00011232,2]
[361015297,1747205463201,-400.0,0.00011232,2]
[361015298,1747205463211,-400.0,0.00011232,2]
[361015299,1747205463221,-400.0,0.00011232,2]
[361015300,1747205463231,-405.01182353,0.00011232,2]
[361015301,1747205463241,-412.37191061,0.00011232,2]
[361015302,1747205463250,-400.0,0.00011232,2]
[361015303,1747205463260,-400.0,0.00011232,2]
[361015304,1747205463270,-401.7171722,0.00011232,2]
[361015305,1747205463279,-454.14,0.00011232,2]
[361015306,1747205463289,-519.59,0.00011232,2]
[361015307,1747205463299,-723.5,0.00011232,2]
[361015308,1747205463309,-911.29,0.00011232,2]
[361015309,1747205463318,-745.91,0.00011232,2]
[361015310,1747205463328,-400.0,0.00011232,2]
[361015311,1747205463338,-400.0,0.00011232,2]
[361015312,1747205463348,-339.20091289,0.00011232,2]
[361015313,1747205463358,-400.0,0.00011232,2]
[361015314,1747205463369,-400.0,0.00011232,2]
[361015315,1747205463379,-1735.21,0.00011232,2]
[361015316,1747205463389,-1119.98,0.00011232,2]
[361015317,1747205463399,-400.0,0.00011232,2]
[361015318,1747205463409,-400.0,0.00011232,2]
[361015319,1747205463419,-400.0,0.00011232,2]
[361015320,1747205463430,-400.0,0.00011232,2]
[361015321,1747205463440,-323.82200008,0.00011232,2]
[361015322,1747205463450,-400.0,0.00011232,2]
[361015323,1747205463460,-827.31,0.00011232,2]
[361015324,1747205463470,-472.52,0.00011232,2]
[361015325,1747205463480,-400.0,0.00011232,2]
[361015326,1747205463490,-400.0,0.00011232,2]
[361015327,1747205463500,-400.0,0.00011232,2]
[361015328,1747205463510,-204.96628974,0.00011232,2]
[361015329,1747205463519,-1056.49,0.00011232,2]
[361015330,1747205463529,-400.0,0.00011232,2]
[361015331,1747205463539,-400.0,0.00011232,2]
[361015332,1747205463549,-934.82,0.00011232,2]
[361015333,1747205463560,-400.0,0.00011232,2]
[361015334,1747205463569,-540.23,0.00011232,2]
[361015335,1747205463579,-400.0,0.00011232,2]
[361015336,1747205463589,-522.47,0.00011232,2]
[361015337,1747205463599,-400.0,0.00011232,2]
[361015338,1747205463609,-1561.58,0.00011232,2]
[361015339,1747205463621,-216.06642526,0.00011232,2]
[361015340,1747205463631,-400.0,0.00011232,2]
[361015341,1747205463641,-400.0,0.00011232,2]
[361015342,1747205463651,-151.0,0.00011232,2]
[361015343,1747205463662,-400.0,0.00011232,2]
[361015344,1747205463672,-400.0,0.00011232,2]
[361015345,1747205463683,-1573.0,0.00011232,2]
[361015346,1747205463693,-455.51,0.00011232,2]
[361015347,1747205463702,-405.4046004,0.00011232,2]
[361015348,1747205463712,-345.27977384,0.00011232,2]
[361015349,1747205463723,-502.25,0.00011232,2]
[361015350,1747205463732,-1000.0,0.00011232,2]
[361015351,1747205463742,-400.0,0.00011232,2]
[361015352,1747205463752,-407.57001185,0.00011232,2]
[361015353,1747205463762,-705.65,0.00011232,2]
[361015354,1747205463772,-400.0,0.00011232,2]
[361015355,1747205463782,-485.83,0.00011232,2]
[361015356,1747205463792,-734.37,0.00011232,2]
[361015357,1747205463802,-614.97,0.00011232,2]
[361015358,1747205463811,-1392.09,0.00011232,2]
[361015359,1747205463821,-749.46,0.00011232,2]
[361015360,1747205463830,-400.0,0.00011232,2]
[361015361,1747205463840,-1167.04,0.00011232,2]
[361015362,1747205463850,-462.11,0.00011232,2]
[361015363,1747205463860,-267.2823003,0.00011232,2]
[361015364,1747205463872,-400.0,0.00011232,2]
[361015365,1747205463882,-1090.37,0.00011232,2]
[361015366,1747205463892,-931.6,0.00011232,2]
[361015367,1747205463901,-435.69,0.00011232,2]
[361015368,1747205463916,-400.0,0.00011232,2]
[361015369,1747205463925,-400.0,0.00011232,2]
[361015370,1747205463935,-400.0,0.00011232,2]
[361015371,1747205463945,-534.47,0.00011232,2]
[361015372,1747205463957,-585.88,0.00011232,2]
[361015373,1747205463967,-520.9738239,0.00011232,2]
[361015374,1747205463977,-400.0,0.00011232,2]
[361015375,1747205463987,-1184.91,0.00011232,2]
[361015376,1747205463998,-400.0,0.00011232,2]
[361015377,1747205464008,-400.0,0.00011232,2]
[361015378,1747205464018,-481.53,0.00011232,2]
[361015379,1747205464027,-589.08,0.00011232,2]
[361015380,1747205464037,-400.0,0.00011232,2]
[361015381,1747205464047,-534.21280621,0.00011232,2]
[361015382,1747205464057,-400.0,0.00011232,2]
[361015383,1747205464067,-553.61,0.00011232,2]
[361015384,1747205464078,-400.0,0.00011232,2]
[361015385,1747205464087,-405.66887336,0.00011232,2]
[361015386,1747205464097,-400.0,0.00011232,2]
[361015387,1747205464106,-400.0,0.00011232,2]
[361015388,1747205464116,-3300.24,0.00011232,2]
[361015389,1747205464125,-1329.24,0.00011232,2]
[361015390,1747205464135,-400.0,0.00011232,2]
[361015391,1747205464145,-1558.44,0.00011232,2]
[361015392,1747205464155,-400.0,0.00011232,2]
[361015393,1747205464164,-400.0,0.00011232,2]
[361015394,1747205464174,-845.86,0.00011232,2]
[361015395,1747205464184,-522.83418889,0.00011232,2]
[361015396,1747205464193,-400.0,0.00011232,2]
[361015397,1747205464202,-1705.34,0.00011232,2]
[361015398,1747205464212,-451.99,0.00011232,2]
[361015399,1747205464222,-400.0,0.00011232,2]
[361015400,1747205464231,-400.0,0.00011232,2]
[361015401,1747205464240,-8531.47,0.00011232,2]
[361015402,1747205464249,-395.46207201,0.00011232,2]
[361015403,1747205464259,-520.09,0.00011232,2]
[361015404,1747205464268,-742.18,0.00011232,2]
[361015405,1747205464277,-400.0,0.00011232,2]
[361015406,1747205464287,-854.75,0.00011232,2]
[361015407,1747205464296,-400.0,0.00011232,2]
[361015408,1747205464306,-151.0,0.00011232,2]
[361015409,1747205464316,-400.0,0.00011232,2]
[361015410,1747205464326,-10907.61,0.00011232,2]
[361015411,1747205464337,-1275.87,0.00011232,2]
[361015412,1747205464348,-486.89,0.00011232,2]
[361015413,1747205464358,-452.42,0.00011232,2]
[361015414,1747205464369,-522.27,0.00011232,2]
[361015415,1747205464379,-151.0,0.00011232,2]
[361015416,1747205464389,-400.0,0.00011232,2]
[361015417,1747205464399,-400.0,0.00011232,2]
[361015418,1747205464409,-400.0,0.00011232,2]
[361015419,1747205464419,-400.0,0.00011232,2]
[361015420,1747205464429,-511.16,0.00011232,2]
[361015421,1747205464439,-1608.48,0.00011232,2]
[361015422,1747205464449,-400.0,0.00011232,2]
[361015423,1747205464459,-400.0,0.00011232,2]
[361015424,1747205464469,-400.0,0.00011232,2]
[361015425,1747205464479,-400.0,0.00011232,2]
[361015426,1747205464489,-400.0,0.00011232,2]
[361015427,1747205464500,-682.94,0.00011232,2]
[361015428,1747205464509,-1227.03,0.00011232,2]
[361015429,1747205464519,-183.94512438,0.00011232,2]
[361015430,1747205464529,-400.0,0.00011232,2]
[361015431,1747205464539,-400.0,0.00011232,2]
[361015432,1747205464550,-777.59,0.00011232,2]
[361015433,1747205464560,-400.0,0.00011232,2]
[361015434,1747205464570,-400.0,0.00011232,2]
[361015435,1747205464581,-1257.77,0.00011232,2]
[361015436,1747205464591,-400.0,0.00011232,2]
[361015437,1747205464601,-486.14,0.00011232,2]
[361015438,1747205464611,-400.0,0.00011232,2]
[361015439,1747205464622,-400.0,0.00011232,2]
[361015440,1747205464633,-614.45,0.00011232,2]
[361015441,1747205464642,-400.0,0.00011232,2]
[361015442,1747205464652,-458.42,0.00011232,2]
[361015443,1747205464662,-400.0,0.00011232,2]
[361015444,1747205464672,-400.0,0.00011232,2]
[361015445,1747205464682,-400.0,0.00011232,2]
[361015446,1747205464692,-1894.52,0.00011232,2]
[361015447,1747205464702,-1676.61,0.00011232,2]
[361015448,1747205464712,-400.0,0.00011232,2]
[361015449,1747205464721,-400.0,0.00011232,2]
[361015450,1747205464731,-694.87,0.00011232,2]
[361015451,1747205464741,-400.0,0.00011232,2]
[361015452,1747205464751,-540.68,0.00011232,2]
[361015453,1747205464760,-1468.86,0.00011232,2]
[361015454,1747205464771,-10180.55,0.00011232,2]
[361015455,1747205464781,-400.0,0.00011232,2]
[361015456,1747205464790,-172.65921563,0.00011232,2]
[361015457,1747205464801,-151.0,0.00011232,2]
[361015458,1747205464810,-780.04,0.00011232,2]
[361015459,1747205464819,-400.0,0.00011232,2]
[361015460,1747205464828,-400.0,0.00011232,2]
[361015461,1747205464839,-400.0,0.00011232,2]
[361015462,1747205464849,-444.63,0.00011232,2]
[361015463,1747205464859,-400.0,0.00011232,2]
[361015464,1747205464869,-735.37,0.00011232,2]
[361015465,1747205464879,-643.27,0.00011232,2]
[361015466,1747205464889,-400.0,0.00011232,2]
[361015467,1747205464900,-5099.24,0.00011232,2]
[361015468,1747205464914,-400.0,0.00011232,2]
[361015469,1747205464924,-400.0,0.00011232,2]
[361015470,1747205464934,-400.0,0.00011232,2]
[361015471,1747205464944,-555.02,0.00011232,2]
[361015472,1747205464954,-400.0,0.00011232,2]
[361015473,1747205464964,-400.0,0.00011232,2]
[361015474,1747205464974,-1078.84,0.00011232,2]
[361015475,1747205464984,-196.2745533,0.00011232,2]
[361015476,1747205464994,-806.76,0.00011232,2]
[361015477,1747205465004,-400.0,0.00011232,2]
[361015478,1747205465014,-969.91,0.00011232,2]
[361015479,1747205465024,-400.0,0.00011232,2]
[361015480,1747205465033,-2300.36,0.00011232,2]
[361015481,1747205465043,-400.0,0.00011232,2]
[361015482,1747205465052,-183.069237,0.00011232,2]
[361015483,1747205465062,-151.0,0.00011232,2]
[361015484,1747205465071,-400.0,0.00011232,2]
[361015485,1747205465081,-9898.98,0.00011232,2]
[361015486,1747205465091,-1692.66,0.00011232,2]
[361015487,1747205465101,-1470.08,0.00011232,2]
[361015488,1747205465110,-400.0,0.00011232,2]
[361015489,1747205465121,-1847.47,0.00011232,2]
[361015490,1747205465131,-400.0,0.00011232,2]
[361015491,1747205465140,-968.74,0.00011232,2]
[361015492,1747205465151,-400.0,0.00011232,2]
[361015493,1747205465160,-183.069237,0.00011232,2]
[361015494,1747205465170,-400.0,0.00011232,2]
[361015495,1747205465179,-400.0,0.00011232,2]
[361015496,1747205465188,-400.0,0.00011232,2]
[361015497,1747205465197,-1385.54,0.00011232,2]
[361015498,1747205465207,-400.0,0.00011232,2]
[361015499,1747205465217,-4619.23,0.00011232,2]
[361015500,1747205465227,-400.0,0.00011232,2]
[361015501,1747205465236,-400.0,0.00011232,2]
[361015502,1747205465245,-400.0,0.00011232,2]
[361015503,1747205465255,-704.41,0.00011232,2]
[361015504,1747205465264,-2101.65,0.00011232,2]
[361015505,1747205465273,-400.0,0.00011232,2]
[361015506,1747205465283,-595.2,0.00011232,2]
[361015507,1747205465292,-1892.45,0.00011232,2]
[361015508,1747205465302,-400.0,0.00011232,2]
[361015509,1747205465311,-400.0,0.00011232,2]
[361015510,1747205465321,-1007.3,0.00011232,2]
[361015511,1747205465330,-458.02745649,0.00011232,2]
[361015512,1747205465340,-400.0,0.00011232,2]
[361015513,1747205465350,-1380.6,0.00011232,2]
[361015514,1747205465361,-677.67,0.00011232,2]
[361015515,1747205465371,-400.0,0.00011232,2]
[361015516,1747205465381,-924.26,0.00011232,2]
[361015517,1747205465391,-400.0,0.00011232,2]
[361015518,1747205465401,-479.03,0.00011232,2]
[361015519,1747205465412,-407.04,0.00011232,2]
[361015520,1747205465421,-400.0,0.00011232,2]
[361015521,1747205465432,-1597.33,0.00011232,2]
[361015522,1747205465442,-400.0,0.00011232,2]
[361015523,1747205465452,-400.0,0.00011232,2]
[361015524,1747205465461,-400.0,0.00011232,2]
[361015525,1747205465650,-813.18,0.00011232,2]
[361015526,1747205465664,-400.0,0.00011232,2]
[361015527,1747205465674,-400.0,0.00011232,2]
[361015528,1747205465683,-400.0,0.00011232,2]
[361015529,1747205465694,-711.9,0.00011232,2]
[361015530,1747205465703,-693.39,0.00011232,2]
[361015531,1747205465713,-400.0,0.00011232,2]
[361015532,1747205465723,-1413.33,0.00011232,2]
[361015533,1747205465732,-841.01,0.00011232,2]
[361015534,1747205465742,-1542.76,0.00011232,2]
[361015535,1747205465752,-421.03514072,0.00011232,2]
[361015536,1747205465761,-400.0,0.00011232,2]
[361015537,1747205465771,-316.65797309,0.00011232,2]
[361015538,1747205465780,-400.0,0.00011232,2]
[361015539,1747205465790,-1079.22,0.00011232,2]
[361015540,1747205465800,-657.97,0.00011232,2]
[361015541,1747205465809,-400.0,0.00011232,2]
[361015542,1747205465818,-650.67,0.00011232,2]
[361015543,1747205465828,-6255.95,0.00011232,2]
[361015544,1747205465838,-538.05,0.00011232,2]
[361015545,1747205465847,-3504.33,0.00011232,2]
[361015546,1747205465857,-400.0,0.00011232,2]
[361015547,1747205465867,-1430.89,0.00011232,2]
[361015548,1747205465876,-400.0,0.00011232,2]
[361015549,1747205465886,-1230.37,0.00011232,2]
[361015550,1747205465895,-400.0,0.00011232,2]
[361015551,1747205465905,-526.44,0.00011232,2]
[361015552,1747205465917,-1237.8,0.00011232,2]
[361015553,1747205465926,-400.0,0.00011232,2]
[361015554,1747205465936,-504.2267701,0.00011232,2]
[361015555,1747205465946,-468.2,0.00011232,2]
[361015556,1747205465955,-1234.0,0.00011232,2]
[361015557,1747205465964,-1265.89,0.00011232,2]
[361015558,1747205465974,-663.28,0.00011232,2]
[361015559,1747205465984,-400.0,0.00011232,2]
[361015560,1747205465994,-400.0,0.00011232,2]
[361015561,1747205466003,-400.0,0.00011232,2]
[361015562,1747205466012,-707.64,0.00011232,2]
[361015563,1747205466022,-400.0,0.00011232,2]
[361015564,1747205466032,-1557.69,0.00011232,2]
[361015565,1747205466042,-400.0,0.00011232,2]
[361015566,1747205466051,-542.72,0.00011232,2]
[361015567,1747205466061,-400.0,0.00011232,2]
[361015568,1747205466070,-3034.94,0.00011232,2]
[361015569,1747205466079,-151.0,0.00011232,2]
[361015570,1747205466089,-400.0,0.00011232,2]
[361015571,1747205466099,-400.0,0.00011232,2]
[361015572,1747205466109,-1648.54,0.00011232,2]
[361015573,1747205466122,-1730.6,0.00011232,2]
[361015574,1747205466132,-400.0,0.00011232,2]
[361015575,1747205466142,-151.0,0.00011232,2]
[361015576,1747205466152,-400.0,0.00011232,2]
[361015577,1747205466161,-584.41,0.00011232,2]
[361015578,1747205466171,-5296.93,0.00011232,2]
[361015579,1747205466181,-400.0,0.00011232,2]
[361015580,1747205466190,-525.59,0.00011232,2]
[361015581,1747205466200,-422.28,0.00011232,2]
[361015582,1747205466209,-151.0,0.00011232,2]
[361015583,1747205466219,-400.0,0.00011232,2]
[361015584,1747205466229,-444.35,0.00011232,2]
[361015585,1747205466239,-400.0,0.00011232,2]
[361015586,1747205466248,-400.0,0.00011232,2]
[361015587,1747205466257,-151.0,0.00011232,2]
[361015588,1747205466267,-549.05539173,0.00011232,2]
[361015589,1747205466276,-400.0,0.00011232,2]
[361015590,1747205466286,-1669.55,0.00011232,2]
[361015591,1747205466296,-596.03,0.00011232,2]
[361015592,1747205466305,-1715.82,0.00011232,2]
[361015593,1747205466315,-400.0,0.00011232,2]
[361015594,1747205466324,-400.0,0.00011232,2]
[361015595,1747205466334,-213.66199932,0.00011232,2]
[361015596,1747205466343,-400.0,0.00011232,2]
[361015597,1747205466352,-400.0,0.00011232,2]
[361015598,1747205466361,-568.88,0.00011232,2]
[361015599,1747205466374,-400.0,0.00011232,2]
[361015600,1747205466383,-400.0,0.00011232,2]
[361015601,1747205466393,-400.0,0.00011232,2]
[361015602,1747205466402,-400.0,0.00011232,2]
[361015603,1747205466412,-400.0,0.00011232,2]
[361015604,1747205466422,-445.52,0.00011232,2]
[361015605,1747205466432,-738.44,0.00011232,2]
[361015606,1747205466442,-400.0,0.00011232,2]
[361015607,1747205466452,-400.0,0.00011232,2]
[361015608,1747205466463,-400.0,0.00011232,2]
[361015609,1747205466474,-400.0,0.00011232,2]
[361015610,1747205466484,-400.0,0.00011232,2]
[361015611,1747205466495,-151.0,0.00011232,2]
[361015612,1747205466506,-400.0,0.00011232,2]
[361015613,1747205466515,-6837.72,0.00011232,2]
[361015614,1747205466525,-501.91807767,0.00011232,2]
[361015615,1747205466537,-400.0,0.00011232,2]
[361015616,1747205466546,-400.0,0.00011232,2]
[361015617,1747205466556,-400.0,0.00011232,2]
[361015618,1747205466566,-400.0,0.00011232,2]
[361015619,1747205466575,-400.0,0.00011232,2]
[361015620,1747205466584,-400.0,0.00011232,2]
[361015621,1747205466595,-387.21661531,0.00011232,2]
[361015622,1747205466605,-400.0,0.00011232,2]
[361015623,1747205466616,-400.0,0.00011232,2]
[361015624,1747205466626,-1433.46,0.00011232,2]
[361015625,1747205466636,-627.49,0.00011232,2]
[361015626,1747205466646,-400.0,0.00011232,2]
[361015627,1747205466656,-2352.27,0.00011232,2]
[361015628,1747205466666,-823.12,0.00011232,2]
[361015629,1747205466676,-401.34116843,0.00011232,2]
[361015630,1747205466687,-400.0,0.00011232,2]
[361015631,1747205466696,-5254.18,0.00011232,2]
[361015632,1747205466706,-400.0,0.00011232,2]
[361015633,1747205466716,-400.0,0.00011232,2]
[361015634,1747205466726,-400.0,0.00011232,2]
[361015635,1747205466736,-420.22,0.00011232,2]
[361015636,1747205466746,-400.0,0.00011232,2]
[361015637,1747205466755,-400.0,0.00011232,2]
[361015638,1747205466765,-400.0,0.00011232,2]
[361015639,1747205466775,-400.0,0.00011232,2]
[361015640,1747205466786,-400.0,0.00011232,2]
[361015641,1747205466796,-400.0,0.00011232,2]
[361015642,1747205466806,-431.61,0.00011232,2]
[361015643,1747205466815,-400.0,0.00011232,2]
[361015644,1747205466825,-400.0,0.00011232,2]
[361015645,1747205466834,-400.0,0.00011232,2]
[361015646,1747205466844,-730.93,0.00011232,2]
[361015647,1747205466853,-400.0,0.00011232,2]
[361015648,1747205466864,-400.0,0.00011232,2]
[361015649,1747205466874,-400.0,0.00011232,2]
[361015650,1747205466884,-529.96,0.00011232,2]
[361015651,1747205466894,-1137.46,0.00011232,2]
[361015652,1747205466904,-570.91,0.00011232,2]
[361015653,1747205466918,-151.0,0.00011232,2]
[361015654,1747205466928,-439.4,0.00011232,2]
[361015655,1747205466938,-400.0,0.00011232,2]
[361015656,1747205466947,-400.0,0.00011232,2]
[361015657,1747205466958,-400.0,0.00011232,2]
[361015658,1747205466968,-420.25305011,0.00011232,2]
[361015659,1747205466977,-1585.92,0.00011232,2]
[361015660,1747205466987,-446.71,0.00011232,2]
[361015661,1747205466997,-400.0,0.00011232,2]
[361015662,1747205467007,-400.0,0.00011232,2]
[361015663,1747205467016,-1683.88,0.00011232,2]
[361015664,1747205467025,-778.99,0.00011232,2]
[361015665,1747205467036,-1982.6,0.00011232,2]
[361015666,1747205467046,-459.7,0.00011232,2]
[361015667,1747205467055,-400.0,0.00011232,2]
[361015668,1747205467064,-400.0,0.00011232,2]
[361015669,1747205467073,-400.0,0.00011232,2]
[361015670,1747205467083,-1084.97,0.00011232,2]
[361015671,1747205467093,-241.6818407,0.00011232,2]
[361015672,1747205467103,-400.0,0.00011232,2]
[361015673,1747205467112,-636.2,0.00011232,2]
[361015674,1747205467123,-400.0,0.00011232,2]
[361015675,1747205467133,-400.0,0.00011232,2]
[361015676,1747205467143,-400.0,0.00011232,2]
[361015677,1747205467154,-1170.03,0.00011232,2]
[361015678,1747205467164,-429.95,0.00011232,2]
[361015679,1747205467173,-400.0,0.00011232,2]
[361015680,1747205467183,-765.85,0.00011232,2]
[361015681,1747205467193,-400.0,0.00011232,2]
[361015682,1747205467202,-606.91,0.00011232,2]
[361015683,1747205467212,-400.0,0.00011232,2]
[361015684,1747205467221,-400.0,0.00011232,2]
[361015685,1747205467232,-151.0,0.00011232,2]
[361015686,1747205467244,-1157.96,0.00011232,2]
[361015687,1747205467253,-400.0,0.00011232,2]
[361015688,1747205467263,-400.0,0.00011232,2]
[361015689,1747205467272,-820.66,0.00011232,2]
[361015690,1747205467282,-400.0,0.00011232,2]
[361015691,1747205467292,-961.85,0.00011232,2]
[361015692,1747205467303,-400.0,0.00011232,2]
[361015693,1747205467313,-247.103097,0.00011232,2]
[361015694,1747205467323,-400.0,0.00011232,2]
[361015695,1747205467333,-494.88,0.00011232,2]
[361015696,1747205467342,-820.65,0.00011232,2]
[361015697,1747205467354,-400.0,0.00011232,2]
[361015698,1747205467364,-615.26,0.00011232,2]
[361015699,1747205467374,-791.71,0.00011232,2]
[361015700,1747205467384,-2641.72,0.00011232,2]
[361015701,1747205467394,-400.0,0.00011232,2]
[361015702,1747205467403,-2350.96,0.00011232,2]
[361015703,1747205467413,-400.0,0.00011232,2]
[361015704,1747205467423,-400.0,0.00011232,2]
[361015705,1747205467432,-634.85,0.00011232,2]
[361015706,1747205467442,-472.22,0.00011232,2]
[361015707,1747205467451,-400.0,0.00011232,2]
[361015708,1747205467461,-400.0,0.00011232,2]
[361015709,1747205467470,-1337.88,0.00011232,2]
[361015710,1747205467480,-400.0,0.00011232,2]
[361015711,1747205467490,-400.0,0.00011232,2]
[361015712,1747205467501,-4419.09,0.00011232,2]
[361015713,1747205467511,-818.6,0.00011232,2]
[361015714,1747205467521,-685.86,0.00011232,2]
[361015715,1747205467531,-468.2,0.00011232,2]
[361015716,1747205467540,-400.0,0.00011232,2]
[361015717,1747205467549,-400.0,0.00011232,2]
[361015718,1747205467559,-2437.17,0.00011232,2]
[361015719,1747205467569,-416.29,0.00011232,2]
[361015720,1747205467579,-1261.09,0.00011232,2]
[361015721,1747205467588,-400.0,0.00011232,2]
[361015722,1747205467597,-400.0,0.00011232,2]
[361015723,1747205467607,-215.73044387,0.00011232,2]
[361015724,1747205467617,-151.0,0.00011232,2]
[361015725,1747205467627,-400.0,0.00011232,2]
[361015726,1747205467636,-517.77,0.00011232,2]
[361015727,1747205467646,-400.0,0.00011232,2]
[361015728,1747205467656,-4000.0,0.00011233,2]
[361015729,1747205467666,-190.29,0.0001124,2]
[361015730,1747205467675,-175.302114,0.00011271,2]
[361015731,1747205467684,-175.302114,0.00011271,2]
[361015732,1747205467694,-1000.0,0.00011272,2]
[361015733,1747205467704,-151.0,0.00011278,2]
[361015734,1747205467713,-194.27921,0.00011278,2]
[361015735,1747205467723,-194.27921,0.00011278,2]
[361015736,1747205467733,-151.0,0.00011278,2]
[361015737,1747205467742,-151.0,0.00011278,2]
[361015738,1747205467752,-151.0,0.00011278,2]
[361015739,1747205467762,-193.069189,0.00011278,2]
[361015740,1747205467772,-193.069189,0.00011278,2]
[361015741,1747205467781,-373.009502,0.00011278,2]
[361015742,1747205467791,-373.009502,0.00011278,2]
[361015743,1747205467800,-450.33,0.000113,2]
[361015744,1747205467810,-231.56,0.000113,2]
[361015745,1747205467819,-1157.11,0.000113,2]
[361015746,1747205467829,-803.94,0.000113,2]
[361015747,1747205467838,-803.94,0.000113,2]
[361015748,1747205467848,-803.94,0.000113,2]
[361015749,1747205467857,-151.0,0.000113,2]
[361015750,1747205467867,-151.0,0.000113,2]
[361015751,1747205467877,-151.0,0.000113,2]
[361015752,1747205467886,-690.0,0.00011338,2]
[361015753,1747205467896,-853.73225352,0.00011343,2]
[361015754,1747205467906,-768.8397087,0.00011406,2]
[361015755,1747205467919,-262.551324,0.00011482,2]
[361015756,1747205467928,-262.551324,0.00011482,2]
[361015757,1747205467938,-299.840888,0.00011482,2]
[361015758,1747205467947,-299.840888,0.00011482,2]
[361015759,1747205467958,-151.0,0.00011498,2]
[361015760,1747205467967,-151.0,0.00011498,2]
[361015761,1747205467977,-221.018676,0.00011498,2]
[361015762,1747205467988,-221.018676,0.00011498,2]
[361015763,1747205467998,-151.0,0.00011498,2]
[361015764,1747205468007,-500.0,0.00011498,2]
[361015765,1747205468017,-500.0,0.00011498,2]